[Event "Israeli Team U18-ch 2022"]
[Site "Be'er Ya'akov"]
[Date "2022.08.15"]
[Round "3.15"]
[White "Scheimann, Ori"]
[Black "Merzbach, Evyatar"]
[Result "1-0"]
[ECO "A96"]
[WhiteElo "1552"]
[BlackElo "1613"]
[Annotator "NA RC"]
[PlyCount "55"]
[EventDate "2022.08.14"]
[EventCountry "ISR"]
[SourceTitle "playchess.com"]
[Source "ChessBase"]
[SourceQuality "1"]
[TimeControl "3000+10"]

1. d4 {[%emt 0:00:02]} f5 {[%emt 0:00:06]} 2. c4 {[%emt 0:00:11]} e6 {[%emt 0:00:06]} 3. Nf3 {[%emt 0:00:05]} Nf6 {[%emt 0:00:06]} 4. g3 {[%emt 0:00:06]} Be7 {[%emt 0:00:08]} 5. Bg2 {[%emt 0:00:05]} O-O {[%emt 0:00:06]} 6. O-O {[%emt 0:00:05]} d6 {[%emt 0:00:03]} 7. Nc3 {[%emt 0:00:08]} Ne4 {[%emt 0:00:06]} 8. Nxe4 {[%emt 0:00:08]} fxe4 {[%emt 0:00:05]} 9. Ne1 {[%emt 0:00:12]} d5 {[%emt 0:00:08]} 10. Be3 {[%emt 0:00:12]} Nc6 {[%emt 0:00:58]} 11. Rc1 {[%emt 0:00:15]} Bg5 {[%emt 0:01:23]} 12. Qd2 {[%emt 0:04:12]} Bxe3 {[%emt 0:01:31]} 13. Qxe3 {[%emt 0:00:10]} Qf6 {[%emt 0:00:41]} 14. Rd1 {[%emt 0:03:08]} b6 {[%emt 0:02:31]} 15. cxd5 {[%emt 0:00:32]} exd5 {[%emt 0:00:03]} 16. f3 {[%emt 0:00:12]} exf3 {[%emt 0:00:48]} 17. Rxf3 {[%emt 0:00:45]} Qe7 {[%emt 0:02:06]} 18. Rxf8+ {[%emt 0:00:42]} Kxf8 {[%emt 0:00:02]} 19. Qf2+ {[%emt 0:01:02]} Ke8 {[%emt 0:03:09]} 20. Bxd5 {[%emt 0:00:12]} Bb7 {[%emt 0:00:51]} 21. Rd3 {[%emt 0:01:56]} Kd7 {[%emt 0:05:27]} 22. Re3 {[%emt 0:01:45]} Qf6 {[%emt 0:01:34]} 23. Rf3 {[%emt 0:03:37]} Qh6 {[%emt 0:02:43]} 24. Nd3 {[%emt 0:02:26]} Nd8 {[%emt 0:06:27]} 25. Bxb7 {[%emt 0:03:23]} Nxb7 {[%emt 0:00:08]} 26. Ne5+ {[%emt 0:00:16]} Kc8 {[%emt 0:00:46]} 27. Rf8+ {[%emt 0:00:37]} Nd8 28. Rxd8+ {[%emt 0:00:09]} 1-0

[Event "Israeli Team U18-ch 2022"]
[Site "Be'er Ya'akov"]
[Date "2022.08.15"]
[Round "3.16"]
[White "Lukin, Gavriel"]
[Black "Zusman, Noa"]
[Result "*"]
[ECO "C01"]
[WhiteElo "1139"]
[BlackElo "1246"]
[Annotator "NA RC"]
[PlyCount "71"]
[EventDate "2022.08.14"]
[EventCountry "ISR"]
[SourceTitle "playchess.com"]
[Source "ChessBase"]
[SourceQuality "1"]
[TimeControl "3000+10"]

1. e4 {[%emt 0:00:00]} e6 {[%emt 0:00:00]} 2. d4 {[%emt 0:00:00]} d5 {[%emt 0:00:00]} 3. exd5 {[%emt 0:00:00]} exd5 {[%emt 0:00:00]} 4. Bd3 {[%emt 0:00:00]} Bd6 {[%emt 0:00:00]} 5. Qf3 {[%emt 0:00:00]} Ne7 {[%emt 0:00:00]} 6. Ne2 {[%emt 0:00:00]} O-O {[%emt 0:00:00]} 7. O-O {[%emt 0:00:00]} c6 {[%emt 0:00:00]} 8. Nd2 {[%emt 0:00:00]} Nd7 {[%emt 0:00:00]} 9. Re1 {[%emt 0:00:00]} Nf6 {[%emt 0:00:00]} 10. h3 {[%emt 0:00:00]} Ng6 {[%emt 0:00:00]} 11. Ng3 {[%emt 0:00:00]} Nh4 {[%emt 0:04:08]} 12. Qd1 {[%emt 0:00:00]} Qc7 {[%emt 0:04:21]} 13. Ndf1 {[%emt 0:00:00]} Bf4 {[%emt 0:12:10]} 14. Nh5 {[%emt 0:00:00]} Nxh5 {[%emt 0:06:54]} 15. Bxh7+ {[%emt 0:00:00]} Kxh7 {[%emt 0:03:17]} 16. Qxh5+ {[%emt 0:00:00]} Kg8 {[%emt 0:00:00]} 17. Qxh4 {[%emt 0:00:00]} Bd6 {[%emt 0:00:17]} 18. Bg5 {[%emt 0:00:00]} f6 {[%emt 0:02:08]} 19. Bd2 {[%emt 0:00:00]} Qb6 {[%emt 0:00:59]} 20. Bc3 {[%emt 0:00:00]} Bd7 {[%emt 0:02:45]} 21. Qh5 {[%emt 0:03:21]} Rae8 {[%emt 0:02:41]} 22. Qg6 {[%emt 0:00:54]} Qa6 {[%emt 0:01:55]} 23. Ne3 {[%emt 0:02:10]} b5 {[%emt 0:03:37]} 24. Ng4 {[%emt 0:00:32]} Kh8 {[%emt 0:00:06]} 25. a3 {[%emt 0:03:21]} Qb6 {[%emt 0:01:23]} 26. Rad1 {[%emt 0:01:26]} a5 {[%emt 0:00:07]} 27. b4 {[%emt 0:00:00]} axb4 {[%emt 0:02:31]} 28. Bxb4 {[%emt 0:00:32]} Qc7 {[%emt 0:00:21]} 29. c3 {[%emt 0:01:26]} Be6 {[%emt 0:00:54]} 30. Qh5+ {[%emt 0:02:32]} Kg8 {[%emt 0:00:00]} 31. Qg6 {[%emt 0:00:39]} Kh8 {[%emt 0:00:00]} 32. Ne3 {[%emt 0:00:50]} c5 {[%emt 0:00:41]} 33. dxc5 {[%emt 0:00:14]} Bxc5 {[%emt 0:01:16]} 34. Nxd5 {[%emt 0:02:03]} Qa7 {[%emt 0:00:00]} 35. Qh5+ {[%emt 0:00:14]} Kg8 {[%emt 0:00:00]} 36. Bxc5 {[%emt 0:00:00]} *

[Event "Israeli Team U18-ch 2022"]
[Site "Be'er Ya'akov"]
[Date "2022.08.15"]
[Round "3.17"]
[White "Gov, Guy"]
[Black "Sella, Eyal"]
[Result "1-0"]
[ECO "D00"]
[WhiteElo "2174"]
[BlackElo "1432"]
[Annotator "TA"]
[PlyCount "49"]
[EventDate "2022.08.14"]
[EventCountry "ISR"]
[SourceTitle "playchess.com"]
[Source "ChessBase"]
[SourceQuality "1"]
[TimeControl "3000+10"]

{[%evp 9,49,-1,31,-1,118,99,121,66,60,70,68,55,107,63,70,18,41,33,37,23,44,53,52,41,58,64,75,72,45,62,103,115,671,666,650,623,1191,980,868,240,29989,29990]} 1. Nc3 {[%emt 0:46:19]} d5 {[%emt 0:46:18]} 2. d4 {[%emt 0:00:12]} a6 {[%emt 0:00:10]} 3. Bf4 {[%emt 0:00:11]} Nf6 {[%emt 0:00:10]} 4. e3 {[%emt 0:00:09]} Bf5 {[%emt 0:00:14]} 5. Bd3 {[%emt 0:00:13]} e6 {[%emt 0:00:10]} 6. Nf3 {[%emt 0:00:10] D00: 1 d4 d5: Unusual lines.} c5 {[%emt 0:00:14] [#]} (6... Bg4 $11 {remains equal.}) 7. Bxf5 $146 {[%emt 0:00:13] White is more active.} ({Predecessor:} 7. Qe2 Qb6 8. Rb1 Nbd7 9. O-O Be7 10. Rfd1 O-O 11. Bxf5 exf5 12. dxc5 Qxc5 13. Nd4 {1-0 (23) Naidoo,R (1198)-Taylor,N (969) Cape Town 2016}) 7... exf5 {[%emt 0:00:10]} 8. O-O {[%emt 0:00:11]} (8. Bg5 $16) 8... c4 $14 {[%emt 0:00:13]} 9. b3 {[%emt 0:00:20]} cxb3 {[%emt 0:00:40]} 10. cxb3 {[%emt 0:00:17]} Bd6 {[%emt 0:00:21]} ({Black should play} 10... Nbd7 $14) 11. Bxd6 {[%emt 0:00:28]} Qxd6 {[%emt 0:00:09]} 12. Qd3 {[%emt 0:00:13]} (12. Qc2 $14) 12... g6 {[%emt 0:00:11]} (12... Ne4 {feels hotter.} 13. Na4 O-O 14. Rfc1 Re8) 13. Rac1 {[%emt 0:00:21][%cal Oc3b5] [#] Nb5! is the strong threat.} O-O {[%emt 0:00:14]} 14. Na4 {[%emt 0:00:13][%cal Bc3a4,Ba4c5,Bc5b7,Bb7c5][%mdl 32]} Nbd7 {[%emt 0:00:12]} 15. Nc5 {[%emt 0:00:14]} Rab8 {[%emt 0:00:35]} 16. b4 {[%emt 0:00:44]} Rfc8 {[%emt 0:00:27] [#]} 17. Nxb7 $1 {[%emt 0:02:32]} Qxb4 {[%emt 0:00:27]} 18. Rxc8+ {[%emt 0:00:00]} Rxc8 {[%emt 0:00:10]} 19. Qxa6 {[%emt 0:00:00]} Rb8 {[%emt 0:01:16]} 20. Nc5 {[%emt 0:00:00]} Rb6 $2 {[%emt 0:00:46][%mdl 8192] This move loses the game for Black.} (20... Kg7 $16) 21. Qc8+ $18 {[%emt 0:00:00]} Nf8 {[%emt 0:00:17]} 22. Ne5 {[%emt 0:00:10]} Qb5 {[%emt 0:00:18]} 23. Qd8 {[%emt 0:00:26]} Kg7 {[%emt 0:00:14]} 24. Qe7 $2 {[%emt 0:00:20]} (24. Qc7 N8d7 25. a4) 24... Qb4 $2 {[%emt 0:00:11]} (24... Qe8 $18 25. Qxe8 Nxe8) 25. Qxf7+ {[%emt 0:00:10] Weighted Error Value: White=0.56/Black=1.01} 1-0

[Event "Israeli Team U18-ch 2022"]
[Site "Be'er Ya'akov"]
[Date "2022.08.15"]
[Round "3.18"]
[White "Neumann, Amit"]
[Black "Tsirilman, Guy"]
[Result "1-0"]
[ECO "C27"]
[WhiteElo "1422"]
[BlackElo "2108"]
[Annotator "TA"]
[PlyCount "21"]
[EventDate "2022.08.14"]
[EventCountry "ISR"]
[SourceTitle "playchess.com"]
[Source "ChessBase"]
[SourceQuality "1"]
[TimeControl "3000+10"]

{[%evp 10,21,14,6,171,144,187,188,272,261,324,323,416,385]} 1. e4 {[%emt 0:00:01]} e5 {[%emt 0:00:15]} 2. Bc4 {[%emt 0:00:05]} Nf6 {[%emt 0:00:17]} 3. d3 {[%emt 0:00:05]} Bc5 {[%emt 0:00:27]} 4. Nc3 {[%emt 0:00:04]} h6 {[%emt 0:00:35]} 5. f4 {[%emt 0:00:04]} d6 {[%emt 0:00:31]} 6. Nf3 {[%emt 0:00:38]} Bg4 $2 {[%emt 0:01:46] C27: Vienna Game: 2...Nf6 3 Bc4 Nxe4.} (6... a6 $11) 7. fxe5 $18 {[%emt 0:00:38]} dxe5 {[%emt 0:00:20]} 8. Bxf7+ $1 {[%emt 0:00:02]} Kxf7 {[%emt 0:01:19]} (8... Ke7 {was worth a try.}) 9. Nxe5+ {[%emt 0:00:04][%mdl 64] [#] Discovered Attack, Double Attack} Ke8 $146 {[%emt 0:46:10]} ({Predecessor:} 9... Ke6 10. Nxg4 Rf8 11. Be3 Bd6 12. e5 Bxe5 13. Nxe5 Kxe5 14. Bc5 Re8 15. O-O Ke6 {1-0 (24) Nivala,T (2215)-Piironen,P (2206) Kuopio 2015}) 10. Nxg4 {[%emt 0:00:06]} Nxg4 {[%emt 0:00:20]} 11. Qxg4 {[%emt 0:00:05] White took control after the opening.  Weighted Error Value: White=0.00 (flawless) /Black=0.93} 1-0

[Event "Israeli Team U18-ch 2022"]
[Site "Be'er Ya'akov"]
[Date "2022.08.15"]
[Round "3.19"]
[White "Lukin, Gavriel"]
[Black "Zusman, Noa"]
[Result "1-0"]
[ECO "B48"]
[WhiteElo "1139"]
[BlackElo "1246"]
[Annotator "NA RC"]
[PlyCount "57"]
[EventDate "2022.08.14"]
[EventCountry "ISR"]
[SourceTitle "playchess.com"]
[Source "ChessBase"]
[SourceQuality "1"]
[TimeControl "3000+10"]

1. e4 {[%emt 0:00:02]} c5 {[%emt 0:00:20]} 2. Nf3 {[%emt 0:00:04]} e6 {[%emt 0:00:10]} 3. d4 {[%emt 0:00:09]} cxd4 {[%emt 0:00:07]} 4. Nxd4 {[%emt 0:00:10]} Nc6 {[%emt 0:00:10]} 5. Nc3 {[%emt 0:00:10]} Qc7 {[%emt 0:00:10]} 6. Be3 {[%emt 0:00:10]} a6 {[%emt 0:00:10]} 7. Qd2 {[%emt 0:00:10]} Nf6 {[%emt 0:00:10]} 8. f3 {[%emt 0:00:10]} Be7 {[%emt 0:00:10]} 9. g4 {[%emt 0:02:24]} Nxd4 {[%emt 0:01:57]} 10. Bxd4 {[%emt 0:00:47]} Bc5 {[%emt 0:01:38]} 11. O-O-O {[%emt 0:02:11]} Bxd4 {[%emt 0:01:10]} 12. Qxd4 {[%emt 0:01:00]} b5 {[%emt 0:04:11]} 13. Bg2 {[%emt 0:03:08]} Bb7 {[%emt 0:00:50]} 14. h4 {[%emt 0:01:40]} Rc8 {[%emt 0:01:29]} 15. Rd2 {[%emt 0:01:16]} e5 {[%emt 0:04:06]} 16. Qd6 {[%emt 0:06:31]} Qxd6 {[%emt 0:01:42]} 17. Rxd6 {[%emt 0:00:08]} Ke7 {[%emt 0:00:13]} 18. Rhd1 {[%emt 0:00:10]} Rc6 {[%emt 0:00:10]} 19. R6d3 {[%emt 0:00:10]} d6 {[%emt 0:00:10]} 20. g5 {[%emt 0:00:10]} Nh5 {[%emt 0:00:10]} 21. Nd5+ {[%emt 0:01:50]} Kd8 {[%emt 0:10:43]} 22. Nb4 {[%emt 0:00:10]} Rb6 {[%emt 0:00:10]} 23. Rxd6+ {[%emt 0:00:10]} Rxd6 {[%emt 0:00:10]} 24. Rxd6+ {[%emt 0:00:10]} Kc7 {[%emt 0:00:10]} 25. Rd3 {[%emt 0:00:10]} Nf4 {[%emt 0:00:10]} 26. Rc3+ {[%emt 0:00:10]} Kd6 {[%emt 0:00:10]} 27. Bf1 {[%emt 0:00:10]} Ng6 {[%emt 0:23:54]} 28. Rd3+ {[%emt 0:08:30]} Ke6 {[%emt 0:00:00]} 29. Bh3+ {[%emt 0:23:00]} 1-0

[Event "Israeli Team U18-ch 2022"]
[Site "Be'er Ya'akov"]
[Date "2022.08.15"]
[Round "4.1"]
[White "Sokolovsky, Yahli"]
[Black "Levin, Guy"]
[Result "1/2-1/2"]
[ECO "B31"]
[WhiteElo "2386"]
[BlackElo "2363"]
[Annotator "TA"]
[PlyCount "114"]
[EventDate "2022.08.14"]
[EventCountry "ISR"]
[SourceTitle "playchess.com"]
[Source "ChessBase"]
[SourceQuality "1"]
[TimeControl "3000+10"]

{[%evp 14,114,31,38,33,12,14,12,22,15,6,16,39,31,39,32,37,32,34,30,48,48,54,54,36,29,32,27,34,20,45,0,0,0,0,0,0,0,0,0,0,0,0,-130,-130,-130,-130,-133,-60,-60,-61,-61,-61,-164,-52,-57,-59,-61,-56,-191,0,-68,0,-278,0,-68,0,-85,0,-76,-26,-26,0,-85,-39,-297,-85,-517,0,-517,0,-665,0,-802,0,-910,-85,-114,0,-812,0,-854,0,-786,0,-85,0,-752,-439,-504,0,-462,0]} 1. e4 {[%emt 0:37:44]} c5 {[%emt 0:26:52]} 2. Nf3 {[%emt 0:00:10]} Nc6 {[%emt 0:00:10]} 3. Bb5 {[%emt 0:00:10]} g6 {[%emt 0:00:10]} 4. O-O {[%emt 0:00:10]} Bg7 {[%emt 0:00:10]} 5. Re1 {[%emt 0:00:10]} e5 {[%emt 0:00:10]} 6. Bxc6 {[%emt 0:00:10]} dxc6 {[%emt 0:00:10]} 7. d3 {[%emt 0:00:10]} Qe7 {[%emt 0:00:10]} 8. a4 {[%emt 0:00:10]} Nh6 {[%emt 0:00:10] B31: Sicilian: 2...Nc6 3 Bb5 g6.} 9. Na3 {[%emt 0:00:10]} f6 {[%emt 0:00:10]} 10. a5 {[%emt 0:00:10]} Nf7 {[%emt 0:00:10] The position is equal.} 11. Nc4 {[%emt 0:00:10]} O-O {[%emt 0:00:10]} 12. Be3 {[%emt 0:00:10] [#]} Be6 $146 {[%emt 0:00:10]} ({Predecessor:} 12... Nd8 13. h3 Ne6 14. c3 Rd8 15. Qc2 Bd7 16. Rad1 Be8 17. b3 Bf7 18. d4 cxd4 19. cxd4 exd4 20. Nxd4 Nxd4 21. Bxd4 {½-½ (45) Raja,H (2472)-Frolyanov,D (2556) Moscow 2020}) 13. Nfd2 {[%emt 0:00:10]} Rab8 {[%emt 0:00:10]} 14. f4 {[%emt 0:00:10]} Bh6 {[%emt 0:00:10]} 15. fxe5 {[%emt 0:00:10]} Bxe3+ {[%emt 0:00:10]} 16. Rxe3 {[%emt 0:00:10]} Nxe5 {[%emt 0:00:10]} 17. Nxe5 {[%emt 0:00:10]} fxe5 {[%emt 0:00:10]} 18. Qe1 {[%emt 0:00:10]} Rf4 {[%emt 0:00:10]} 19. Rf3 Rbf8 20. Qe3 Qd6 {[%emt 0:00:20]} 21. Raf1 {[%emt 0:00:30]} b6 {[%emt 0:03:45]} 22. g3 {[%emt 0:12:46]} Rxf3 {[%emt 0:20:03]} 23. Rxf3 {[%emt 0:00:00]} bxa5 {[%emt 0:00:10]} 24. Rxf8+ {[%emt 0:00:20]} Kxf8 $11 {[%emt 0:00:10][%mdl 4096] Endgame KQB-KQN} 25. Nf3 {[%emt 0:00:10]} Bg4 {[%emt 0:00:10]} 26. Nd2 {[%emt 0:00:10]} Be6 {[%emt 0:00:10]} 27. c4 {[%emt 0:00:10]} a4 {[%emt 0:00:10]} 28. Nb1 {[%emt 0:00:10]} (28. Kg2 $11) 28... Qd4 $17 {[%emt 0:00:00]} 29. Qxd4 {[%emt 0:00:10]} cxd4 {[%emt 0:00:20] KB-KN} 30. Kf2 {[%emt 0:00:00]} Bg4 {[%emt 0:00:10]} (30... Ke7 $17 31. c5 Bb3) 31. c5 {[%emt 0:00:20]} Ke7 {[%emt 0:00:10]} 32. Nd2 {[%emt 0:00:10]} Be6 {[%emt 0:00:00]} 33. Kg2 {[%emt 0:00:00]} (33. Kf3 $15) 33... Bb3 {[%emt 0:00:20]} (33... g5 $1 $19 {[%cal Rg5g4]} 34. h3 h5) 34. Kf2 $15 {[%emt 0:00:01]} Kf6 {[%emt 0:00:00]} 35. Ke2 {[%emt 0:00:07]} Be6 {[%emt 0:00:20]} 36. Kf2 {[%emt 0:00:32] [#]} (36. Kd1 $15) 36... Bb3 $2 {[%emt 0:00:00]} (36... g5 $1 $19 {[%cal Rg5g4]} 37. h4 g4) 37. Ke1 {[%emt 0:00:00]} (37. Ke2 $1 $11) 37... Be6 {[%emt 0:00:20]} (37... h5 $15) 38. Ke2 $2 {[%emt 0:00:20][%mdl 8192] [#]} (38. Kf2 $11) 38... Bb3 $2 {[%emt 0:00:10]} (38... g5 $1 $19 {Hoping for ...Ke7.} 39. Kf2 g4) 39. Kf2 (39. Ke1 $1 $11) 39... Be6 {[%emt 0:00:10]} (39... h5 $15) 40. Kf3 (40. Ke2 $1 $11) 40... Bb3 (40... h6 $17) 41. h3 {[%emt 0:00:30]} (41. Ke2 $11) 41... Bc2 {[%emt 0:00:20]} (41... Be6 $17 42. g4 Bb3) 42. Ke2 $11 {[%emt 0:00:10]} Bb3 {[%emt 0:00:10]} 43. Nf3 {[%emt 0:00:10]} (43. Kf3 $1 $11) 43... Be6 {[%emt 0:00:10]} (43... h5 $17 44. h4 Bc2) 44. Ng1 $2 {[%emt 0:00:10][%mdl 8192]} (44. g4 $15 h6 45. Ke1) 44... g5 $2 {[%emt 0:00:10]} (44... h5 $19 {aiming for ...g5.} 45. Kf3 Bd7) 45. Kf2 $2 {[%emt 0:00:10][%mdl 8192]} (45. g4 $17 {is more resistant.}) 45... h6 $2 {[%emt 0:00:10]} (45... g4 $19 46. h4 h5) 46. Ke2 $2 {[%emt 0:00:10][%mdl 8192]} (46. g4 $11) 46... Kg6 $2 {[%emt 0:00:10]} ({Better is} 46... g4 $19 47. hxg4 Bxg4+ 48. Kd2 Kg5) 47. Ke1 $2 {[%emt 0:00:10][%mdl 8192]} (47. Nf3 $11 Kf6 48. h4) 47... Kf6 $2 {[%emt 0:00:10]} ({Black should play} 47... g4 $19 48. Kf1 gxh3) 48. Kf2 $2 {[%emt 0:00:10][%mdl 8192]} (48. Ke2 $11) 48... Bc8 $2 {[%emt 0:00:10]} (48... g4 $19 49. h4 h5) 49. Ke1 $2 {[%emt 0:00:10][%mdl 8192]} (49. g4 $11) 49... Ba6 $2 {[%emt 0:00:10]} (49... g4 $19 {is more deadly.} 50. h4 Be6) 50. Kd2 {[%emt 0:00:10]} Bc8 {[%emt 0:00:10]} (50... h5 $17 {White must now prevent ...Bc8.} 51. Nf3 g4 52. hxg4 hxg4) 51. Ke2 $2 {[%emt 0:00:10][%mdl 8192]} (51. Ke1 $11) 51... Be6 {[%emt 0:00:10]} 52. Kf2 $1 {[%emt 0:00:10]} Bc8 {[%emt 0:00:00]} 53. Ke1 {[%emt 0:00:10]} Ba6 $2 {[%emt 0:00:20]} (53... g4 $19 54. h4 Be6) 54. Ke2 {[%emt 0:00:10]} (54. Kd2 $11) 54... Bc8 {[%emt 0:00:10]} (54... h5 $17 {Strongly threatening ...Bc8.} 55. Nf3 Bc8) 55. Kd1 $2 {[%emt 0:00:00][%mdl 8192]} (55. Ke1 $11) 55... Bd7 {[%emt 0:00:10]} 56. Kd2 {[%emt 0:00:20]} Bc8 {[%emt 0:00:10]} 57. Ke2 Be6 $2 {[%emt 0:00:00] Weighted Error Value: White=1.18/Black=1.22} ({Black should try} 57... h5 $19 58. h4 g4) 1/2-1/2

[Event "Israeli Team U18-ch 2022"]
[Site "Be'er Ya'akov"]
[Date "2022.08.15"]
[Round "4.2"]
[White "Ben Ari, Yannay"]
[Black "Neiman, Maks"]
[Result "1-0"]
[ECO "E08"]
[WhiteElo "2411"]
[BlackElo "2110"]
[Annotator "TA"]
[PlyCount "45"]
[EventDate "2022.08.14"]
[EventCountry "ISR"]
[SourceTitle "playchess.com"]
[Source "ChessBase"]
[SourceQuality "1"]
[TimeControl "3000+10"]

{[%evp 20,45,24,0,0,0,0,-30,9,0,75,59,106,80,84,106,81,76,75,68,715,734,719,718,688,668,1553,1342]} 1. Nf3 {[%emt 0:01:09]} Nf6 {[%emt 0:01:10]} 2. c4 {[%emt 0:00:11]} e6 {[%emt 0:01:35]} 3. g3 {[%emt 0:00:06]} d5 {[%emt 0:02:34]} 4. Bg2 {[%emt 0:00:17]} Be7 {[%emt 0:00:46]} 5. O-O {[%emt 0:00:41]} O-O {[%emt 0:00:23]} 6. d4 {[%emt 0:00:53]} c6 {[%emt 0:00:43]} 7. Qc2 {[%emt 0:01:46]} b6 {[%emt 0:00:55]} 8. Rd1 {[%emt 0:06:53]} Ba6 {[%emt 0:03:04]} 9. b3 {[%emt 0:00:29]} Nbd7 {[%emt 0:00:37]} 10. Bb2 {[%emt 0:04:08]} Rc8 {[%emt 0:03:31]} 11. Nc3 {[%emt 0:00:11][%cal Bb1c3,Bc3e2,Be2d4,Bd4f5,Bf5e7][%mdl 32]} Qc7 {[%emt 0:06:21] E08: Closed Catalan: Main Line: 7 Qc2.} 12. e4 {[%emt 0:07:03][%cal Be2e4,Be4e5][%mdl 32]} dxc4 {[%emt 0:07:27]} 13. h4 {[%emt 0:00:00] [#]} e5 $146 {[%emt 0:03:47] Black has an edge.} ({Predecessor:} 13... h6 14. Bh3 Rfd8 15. Qe2 b5 16. bxc4 bxc4 17. Rac1 Rb8 18. Ba1 Bb4 19. Qe3 Re8 {1-0 (43) Podzielny,K (2456)-Cako,L (2155) Groningen 2009}) 14. Ne2 $1 {[%emt 0:10:50]} exd4 {[%emt 0:05:47]} (14... Rcd8 $11 {keeps the balance.}) 15. Nexd4 $16 {[%emt 0:00:36]} Nc5 {[%emt 0:02:08]} (15... Rfe8 $14) 16. e5 {[%emt 0:03:32] Ng5 is the strong threat.} Nd5 {[%emt 0:06:32]} 17. bxc4 {[%emt 0:03:29]} Nb4 {[%emt 0:01:10] [#]} 18. Qe2 {[%emt 0:05:34]} Na4 {[%emt 0:03:13][%cal Oa6c4] aiming for ...Bxc4!} 19. Nf5 {[%emt 0:02:06] Black must now prevent e6.} Bxc4 {[%emt 0:00:45][%mdl 8192]} 20. Qxc4 $18 {[%emt 0:00:03] White is clearly winning.} Nxb2 {[%emt 0:00:03]} 21. Qg4 {[%emt 0:00:02][%csl Gf5][%cal Rg4g7]} g6 {[%emt 0:00:26] [#]} 22. Rd7 $3 {[%emt 0:00:04][%mdl 576] Skewer, Double Attack} h5 {[%emt 0:00:41]} (22... Qxd7 23. Nh6+) 23. Nxe7+ {[%emt 0:00:34] White took control after the opening.  Weighted Error Value: White=0.08 (flawless) /Black=0.31} 1-0

[Event "Israeli Team U18-ch 2022"]
[Site "Be'er Ya'akov"]
[Date "2022.08.15"]
[Round "4.3"]
[White "Borodety, Itamar"]
[Black "Kochavi, Ori"]
[Result "0-1"]
[ECO "A11"]
[WhiteElo "1939"]
[BlackElo "2364"]
[Annotator "RC"]
[PlyCount "40"]
[EventDate "2022.08.14"]
[EventCountry "ISR"]
[SourceTitle "playchess.com"]
[Source "ChessBase"]
[SourceQuality "1"]
[TimeControl "3000+10"]

1. Nf3 {[%emt 0:00:14]} d5 {[%emt 0:00:07]} 2. g3 {[%emt 0:00:03]} c6 {[%emt 0:00:22]} 3. Bg2 {[%emt 0:00:05]} Bg4 {[%emt 0:00:03]} 4. c4 {[%emt 0:00:14]} e6 {[%emt 0:01:35]} 5. O-O {[%emt 0:01:46]} Nf6 {[%emt 0:00:09]} 6. Ne5 {[%emt 0:00:35]} Bf5 {[%emt 0:00:12]} 7. cxd5 {[%emt 0:01:20]} exd5 {[%emt 0:00:15]} 8. d3 {[%emt 0:00:49]} Bd6 {[%emt 0:01:24]} 9. Nf3 {[%emt 0:00:37]} O-O {[%emt 0:00:44]} 10. Qb3 {[%emt 0:01:30]} Qc8 {[%emt 0:02:40]} 11. Nc3 {[%emt 0:00:24]} Nbd7 {[%emt 0:01:30]} 12. Qc2 {[%emt 0:01:23]} Re8 {[%emt 0:01:50]} 13. Re1 {[%emt 0:15:06]} h6 {[%emt 0:03:15]} 14. Bd2 {[%emt 0:04:25]} Bh7 {[%emt 0:01:30]} 15. Rab1 {[%emt 0:01:06]} a6 {[%emt 0:01:44]} 16. b4 {[%emt 0:02:54]} Bb8 {[%emt 0:00:04]} 17. Be3 {[%emt 0:04:21]} Rxe3 {[%emt 0:07:01]} 18. fxe3 {[%emt 0:00:37]} Ba7 {[%emt 0:00:04]} 19. h3 {[%emt 0:04:35]} Qc7 {[%emt 0:01:13]} 20. Kf2 {[%emt 0:03:17]} Nh5 {[%emt 0:27:48]} 0-1

[Event "Israeli Team U18-ch 2022"]
[Site "Be'er Ya'akov"]
[Date "2022.08.15"]
[Round "4.4"]
[White "Duchan, Yoav"]
[Black "Bilenkiy, Maksym"]
[Result "1-0"]
[ECO "B15"]
[WhiteElo "1786"]
[BlackElo "1650"]
[Annotator "NA RC"]
[PlyCount "50"]
[EventDate "2022.08.14"]
[EventCountry "ISR"]
[SourceTitle "playchess.com"]
[Source "ChessBase"]
[SourceQuality "1"]
[TimeControl "3000+10"]

1. e4 {[%emt 0:00:01]} c6 {[%emt 0:00:08]} 2. Nc3 {[%emt 0:00:06]} d5 {[%emt 0:00:29]} 3. Nf3 {[%emt 0:00:05]} g6 {[%emt 0:00:37]} 4. d4 {[%emt 0:01:08]} Bg7 {[%emt 0:00:24]} 5. Be2 {[%emt 0:01:01]} dxe4 {[%emt 0:00:26]} 6. Nxe4 {[%emt 0:00:12]} Nf6 {[%emt 0:00:07]} 7. Nxf6+ {[%emt 0:00:29]} exf6 {[%emt 0:00:53]} 8. Be3 {[%emt 0:00:25]} Be6 {[%emt 0:00:11]} 9. O-O {[%emt 0:00:19]} O-O {[%emt 0:00:05]} 10. Qd2 {[%emt 0:00:30]} Re8 {[%emt 0:00:12]} 11. c4 {[%emt 0:01:26]} f5 {[%emt 0:01:33]} 12. Rfd1 {[%emt 0:01:42]} Bc8 {[%emt 0:01:36]} 13. d5 {[%emt 0:01:32]} cxd5 {[%emt 0:00:38]} 14. cxd5 {[%emt 0:00:19]} Nd7 {[%emt 0:00:08]} 15. Rac1 {[%emt 0:01:51]} Nf6 {[%emt 0:00:18]} 16. d6 {[%emt 0:05:43]} Ne4 {[%emt 0:01:49]} 17. Qd3 {[%emt 0:02:19]} Bd7 {[%emt 0:01:36]} 18. Qb3 {[%emt 0:09:01]} b6 {[%emt 0:04:10]} 19. Bc4 {[%emt 0:01:21]} Be6 {[%emt 0:01:38]} 20. Bxe6 {[%emt 0:01:52]} Rxe6 {[%emt 0:00:35]} 21. d7 {[%emt 0:05:15]} Qf8 {[%emt 0:03:22]} 22. Ng5 {[%emt 0:02:40]} Nxg5 {[%emt 0:03:52]} 23. Bxg5 {[%emt 0:00:29]} Rd6 {[%emt 0:01:08]} 24. Rxd6 {[%emt 0:00:39]} Qxd6 {[%emt 0:00:41]} 25. Rc8+ {[%emt 0:00:13]} Bf8 {[%emt 0:00:03]} 1-0